[Event "Late-Titled-Tuesday-Blitz-October-10-2023"]
[Site "Chess.com"]
[Date "2023.10.10"]
[Round "5"]
[White "azikom"]
[Black "martinez_95"]
[Result "1-0"]
[WhiteElo "2605"]
[BlackElo "2220"]
[TimeControl "180+1"]
[EndTime "14:53:13 PDT"]
[Termination "azikom won on time"]

1. c4 {[%clk 0:03:00]} 1... g6 {[%clk 0:02:16.4]} 2. Nc3 {[%clk 0:02:59]} 2...
Bg7 {[%clk 0:02:16.9]} 3. d4 {[%clk 0:02:58.5]} 3... c5 {[%clk 0:02:15.8]} 4. d5
{[%clk 0:02:57.5]} 4... Nf6 {[%clk 0:02:14.9]} 5. e4 {[%clk 0:02:57.3]} 5... d6
{[%clk 0:02:15.3]} 6. Bg5 {[%clk 0:02:57.4]} 6... O-O {[%clk 0:02:14.7]} 7. Qd2
{[%clk 0:02:56.6]} 7... e6 {[%clk 0:02:14.3]} 8. f3 {[%clk 0:02:56.2]} 8... exd5
{[%clk 0:02:14.1]} 9. cxd5 {[%clk 0:02:57.1]} 9... a6 {[%clk 0:02:12.7]} 10. a4
{[%clk 0:02:56.7]} 10... Re8 {[%clk 0:02:11.1]} 11. Nge2 {[%clk 0:02:54.5]}
11... Qc7 {[%clk 0:02:11.5]} 12. Ng3 {[%clk 0:02:52.6]} 12... Nbd7 {[%clk
0:02:10.9]} 13. Be2 {[%clk 0:02:52.1]} 13... h5 {[%clk 0:02:06.9]} 14. O-O
{[%clk 0:02:51.6]} 14... Nh7 {[%clk 0:02:06.8]} 15. Bh6 {[%clk 0:02:47]} 15...
h4 {[%clk 0:02:06.8]} 16. Nh1 {[%clk 0:02:46.7]} 16... Bd4+ {[%clk 0:02:00.8]}
17. Nf2 {[%clk 0:02:42.9]} 17... Ne5 {[%clk 0:01:53.2]} 18. Be3 {[%clk
0:02:35.3]} 18... h3 {[%clk 0:01:49.2]} 19. g3 {[%clk 0:02:22.3]} 19... Bxe3
{[%clk 0:01:41.7]} 20. Qxe3 {[%clk 0:02:22.1]} 20... f5 {[%clk 0:01:33.6]} 21.
Qh6 {[%clk 0:01:53.1]} 21... Nf7 {[%clk 0:01:12.1]} 22. Qxg6+ {[%clk 0:01:49.9]}
22... Kh8 {[%clk 0:01:12.6]} 23. f4 {[%clk 0:01:40]} 23... Bd7 {[%clk
0:00:57.3]} 24. exf5 {[%clk 0:01:31.6]} 24... Re7 {[%clk 0:00:51.5]} 25. f6
{[%clk 0:01:29]} 25... Rg8 {[%clk 0:00:51.7]} 26. Qh5 {[%clk 0:01:25.4]} 26...
Re3 {[%clk 0:00:38.1]} 27. Qxf7 {[%clk 0:01:22.4]} 27... Qd8 {[%clk 0:00:32.3]}
28. Bd3 {[%clk 0:01:17.1]} 28... Nxf6 {[%clk 0:00:28.1]} 29. Rae1 {[%clk
0:01:02.4]} 29... Rxe1 {[%clk 0:00:21.9]} 30. Rxe1 {[%clk 0:00:55.3]} 30... Rg7
{[%clk 0:00:22.4]} 31. Qxf6 {[%clk 0:00:43.1]} 31... Qxf6 {[%clk 0:00:21.6]} 32.
a5 {[%clk 0:00:34.8]} 32... Qxf4 {[%clk 0:00:17.2]} 33. Nce4 {[%clk 0:00:19]}
33... Qf3 {[%clk 0:00:17]} 34. Bf1 {[%clk 0:00:18.5]} 34... Rf7 {[%clk
0:00:14.2]} 35. Bxh3 {[%clk 0:00:13.6]} 35... Bxh3 {[%clk 0:00:11.2]} 36. Nxh3
{[%clk 0:00:03.4]} 36... Qd3 {[%clk 0:00:11.6]} 37. Nhg5 {[%clk 0:00:02.3]}
37... Qd4+ {[%clk 0:00:11.8]} 38. Kg2 {[%clk 0:00:02.1]} 38... Rg7 {[%clk
0:00:09]} 39. h4 {[%clk 0:00:01.6]} 39... Qxb2+ {[%clk 0:00:08.9]} 40. Kh3
{[%clk 0:00:01.3]} 40... Qe5 {[%clk 0:00:07.8]} 41. Rf1 {[%clk 0:00:01.5]} 41...
Qe7 {[%clk 0:00:04.7]} 42. Rf5 {[%clk 0:00:01.5]} 42... Qd7 {[%clk 0:00:04.8]}
43. g4 {[%clk 0:00:01.5]} 43... c4 {[%clk 0:00:03.3]} 44. Rf8+ {[%clk
0:00:01.1]} 44... Rg8 {[%clk 0:00:02.6]} 45. Rxg8+ {[%clk 0:00:01.5]} 45... Kxg8
{[%clk 0:00:03.2]} 46. Nf6+ {[%clk 0:00:02.1]} 46... Kg7 {[%clk 0:00:02.2]} 47.
Nxd7 {[%clk 0:00:02.5]} 47... c3 {[%clk 0:00:02.6]} 48. Ne6+ {[%clk 0:00:03.1]}
1-0

[Event "Late-Titled-Tuesday-Blitz-October-10-2023"]
[Site "Chess.com"]
[Date "2023.10.10"]
[Round "5"]
[White "biostatistician"]
[Black "Iball95"]
[Result "0-1"]
[WhiteElo "2554"]
[BlackElo "2839"]
[TimeControl "180+1"]
[EndTime "14:53:14 PDT"]
[Termination "Iball95 won on time"]

1. d4 {[%clk 0:03:00]} 1... d5 {[%clk 0:03:00]} 2. c4 {[%clk 0:02:59.6]} 2... e6
{[%clk 0:03:00.8]} 3. Nf3 {[%clk 0:02:58.6]} 3... Nf6 {[%clk 0:03:00.6]} 4. Bg5
{[%clk 0:02:58.6]} 4... Be7 {[%clk 0:02:59.7]} 5. e3 {[%clk 0:02:58.4]} 5... O-O
{[%clk 0:03:00]} 6. Nc3 {[%clk 0:02:58.6]} 6... h6 {[%clk 0:02:57.3]} 7. Bh4
{[%clk 0:02:58.8]} 7... Nbd7 {[%clk 0:02:57.5]} 8. Rc1 {[%clk 0:02:58.6]} 8...
c5 {[%clk 0:02:57]} 9. cxd5 {[%clk 0:02:58.2]} 9... Nxd5 {[%clk 0:02:57.9]} 10.
Bxe7 {[%clk 0:02:57.8]} 10... Nxe7 {[%clk 0:02:58.8]} 11. Be2 {[%clk 0:02:57.1]}
11... b6 {[%clk 0:02:58.7]} 12. O-O {[%clk 0:02:56.3]} 12... Bb7 {[%clk
0:02:59]} 13. a3 {[%clk 0:02:54.2]} 13... a6 {[%clk 0:02:47.1]} 14. dxc5 {[%clk
0:02:45.8]} 14... Nxc5 {[%clk 0:02:48]} 15. b4 {[%clk 0:02:44.8]} 15... Ne4
{[%clk 0:02:46.4]} 16. Nxe4 {[%clk 0:02:36.9]} 16... Bxe4 {[%clk 0:02:47.3]} 17.
Qb3 {[%clk 0:02:29.8]} 17... Bd5 {[%clk 0:02:25.8]} 18. Qb2 {[%clk 0:02:23.9]}
18... a5 {[%clk 0:02:23.4]} 19. Nd4 {[%clk 0:02:14.9]} 19... axb4 {[%clk
0:02:17.4]} 20. Qxb4 {[%clk 0:02:15.8]} 20... Ng6 {[%clk 0:02:14.4]} 21. Bf3
{[%clk 0:02:05.7]} 21... Ne5 {[%clk 0:02:03.9]} 22. Bxd5 {[%clk 0:02:00.6]}
22... Qxd5 {[%clk 0:02:04.5]} 23. Rfd1 {[%clk 0:01:58.9]} 23... Qa5 {[%clk
0:02:02.1]} 24. Nc6 {[%clk 0:01:52.8]} 24... Nxc6 {[%clk 0:01:58.5]} 25. Rxc6
{[%clk 0:01:53.7]} 25... Qxa3 {[%clk 0:01:48.3]} 26. Qxa3 {[%clk 0:01:52.1]}
26... Rxa3 {[%clk 0:01:49.2]} 27. Rxb6 {[%clk 0:01:52.6]} 27... Ra2 {[%clk
0:01:49.7]} 28. g4 {[%clk 0:01:23.6]} 28... g6 {[%clk 0:01:38.1]} 29. Rb7 {[%clk
0:01:22.5]} 29... Ra4 {[%clk 0:01:36.1]} 30. h3 {[%clk 0:01:22]} 30... Ra5
{[%clk 0:01:35.3]} 31. Kg2 {[%clk 0:01:21.2]} 31... h5 {[%clk 0:01:36.2]} 32.
Rdd7 {[%clk 0:01:20.7]} 32... Kg7 {[%clk 0:01:35.8]} 33. Kg3 {[%clk 0:01:20]}
33... hxg4 {[%clk 0:01:36.1]} 34. hxg4 {[%clk 0:01:19.9]} 34... Rc5 {[%clk
0:01:35.8]} 35. Re7 {[%clk 0:01:19.9]} 35... Kg8 {[%clk 0:01:28.4]} 36. f4
{[%clk 0:01:17.4]} 36... Ra5 {[%clk 0:01:27.7]} 37. Kf3 {[%clk 0:01:02.1]} 37...
Rc5 {[%clk 0:01:26.3]} 38. Ke4 {[%clk 0:01:02.3]} 38... Ra5 {[%clk 0:01:25.3]}
39. Kf3 {[%clk 0:00:59.5]} 39... Rc5 {[%clk 0:01:25.4]} 40. Red7 {[%clk
0:00:58.4]} 40... Ra5 {[%clk 0:01:24.9]} 41. Kg3 {[%clk 0:00:57.5]} 41... Kg7
{[%clk 0:01:25.6]} 42. Re7 {[%clk 0:00:54.4]} 42... Kg8 {[%clk 0:01:25.1]} 43.
Kh4 {[%clk 0:00:42.9]} 43... Ra3 {[%clk 0:01:10.4]} 44. e4 {[%clk 0:00:40.9]}
44... Ra4 {[%clk 0:01:10.1]} 45. f5 {[%clk 0:00:20.4]} 45... exf5 {[%clk
0:00:58.3]} 46. exf5 {[%clk 0:00:21.3]} 46... gxf5 {[%clk 0:00:58.2]} 47. Kg5
{[%clk 0:00:21.3]} 47... fxg4 {[%clk 0:00:56.7]} 48. Kh4 {[%clk 0:00:21.6]}
48... Kg7 {[%clk 0:00:56]} 49. Re5 {[%clk 0:00:20.5]} 49... Kf6 {[%clk 0:00:53]}
50. Rh5 {[%clk 0:00:18.4]} 50... Rg8 {[%clk 0:00:45.9]} 51. Rh6+ {[%clk
0:00:16.9]} 51... Ke5 {[%clk 0:00:45.6]} 52. Rb5+ {[%clk 0:00:16.4]} 52... Kf4
{[%clk 0:00:41.5]} 53. Rf6+ {[%clk 0:00:16.4]} 53... Ke3 {[%clk 0:00:41.8]} 54.
Rxf7 {[%clk 0:00:13.2]} 54... g3+ {[%clk 0:00:41.5]} 55. Kh3 {[%clk 0:00:13.7]}
55... g2 {[%clk 0:00:42]} 56. Rb3+ {[%clk 0:00:08.7]} 56... Ke4 {[%clk
0:00:34.6]} 0-1

[Event "Late-Titled-Tuesday-Blitz-October-10-2023"]
[Site "Chess.com"]
[Date "2023.10.10"]
[Round "5"]
[White "Binary010"]
[Black "Zq1"]
[Result "1/2-1/2"]
[WhiteElo "2830"]
[BlackElo "2564"]
[TimeControl "180+1"]
[EndTime "14:53:14 PDT"]
[Termination "Game drawn by repetition"]

1. e4 {[%clk 0:03:00.9]} 1... c5 {[%clk 0:02:59.2]} 2. Nf3 {[%clk 0:03:00.7]}
2... d6 {[%clk 0:02:59.4]} 3. d4 {[%clk 0:03:00.8]} 3... cxd4 {[%clk 0:02:59.6]}
4. Nxd4 {[%clk 0:03:01.7]} 4... Nf6 {[%clk 0:02:59.3]} 5. Nc3 {[%clk 0:03:02.2]}
5... Nc6 {[%clk 0:02:59]} 6. Bg5 {[%clk 0:03:02.8]} 6... Bd7 {[%clk 0:02:59]} 7.
Qd2 {[%clk 0:03:02.7]} 7... Rc8 {[%clk 0:02:57.2]} 8. Nxc6 {[%clk 0:03:02.3]}
8... Bxc6 {[%clk 0:02:48.8]} 9. f3 {[%clk 0:03:01.8]} 9... e6 {[%clk 0:02:44.7]}
10. O-O-O {[%clk 0:02:59.8]} 10... h6 {[%clk 0:02:36.2]} 11. Bf4 {[%clk
0:02:47.3]} 11... d5 {[%clk 0:02:29.5]} 12. exd5 {[%clk 0:02:46.5]} 12... Nxd5
{[%clk 0:02:29.1]} 13. Nxd5 {[%clk 0:02:44.8]} 13... Qxd5 {[%clk 0:02:28.1]} 14.
Qxd5 {[%clk 0:02:27.8]} 14... Bxd5 {[%clk 0:02:27.8]} 15. Bb5+ {[%clk
0:02:15.9]} 15... Bc6 {[%clk 0:02:27.5]} 16. Bxc6+ {[%clk 0:02:06.4]} 16... Rxc6
{[%clk 0:02:27.4]} 17. Rd3 {[%clk 0:02:06.6]} 17... Bc5 {[%clk 0:02:12.9]} 18.
Rhd1 {[%clk 0:02:05.5]} 18... O-O {[%clk 0:02:12.5]} 19. Rd7 {[%clk 0:02:03.1]}
19... b5 {[%clk 0:02:12.5]} 20. Rb7 {[%clk 0:01:54.3]} 20... Rfc8 {[%clk
0:01:58.1]} 21. Kb1 {[%clk 0:01:15.8]} 21... b4 {[%clk 0:01:54]} 22. Rdd7 {[%clk
0:01:11.9]} 22... Bf8 {[%clk 0:01:52.4]} 23. Bc7 {[%clk 0:00:53.8]} 23... a5
{[%clk 0:01:44.2]} 24. Bxa5 {[%clk 0:00:40.1]} 24... Rxc2 {[%clk 0:01:42.5]} 25.
Rbc7 {[%clk 0:00:40.7]} 25... R8xc7 {[%clk 0:01:35.7]} 26. Bxc7 {[%clk
0:00:40.1]} 26... Rc6 {[%clk 0:01:11.8]} 27. Be5 {[%clk 0:00:30.6]} 27... f6
{[%clk 0:01:07.4]} 28. Rc7 {[%clk 0:00:30.7]} 28... Rb6 {[%clk 0:00:58.2]} 29.
Bd4 {[%clk 0:00:27.3]} 29... Rb5 {[%clk 0:00:58.4]} 30. Kc2 {[%clk 0:00:26.6]}
30... e5 {[%clk 0:00:58.1]} 31. Be3 {[%clk 0:00:26]} 31... b3+ {[%clk
0:00:49.3]} 32. axb3 {[%clk 0:00:25.9]} 32... f5 {[%clk 0:00:48.9]} 33. Rc4
{[%clk 0:00:19.2]} 33... Kf7 {[%clk 0:00:44.6]} 34. Bd2 {[%clk 0:00:19.5]} 34...
Ke6 {[%clk 0:00:43.9]} 35. b4 {[%clk 0:00:19.8]} 35... g5 {[%clk 0:00:34.3]} 36.
Kb3 {[%clk 0:00:19.5]} 36... f4 {[%clk 0:00:22.8]} 37. Ka4 {[%clk 0:00:18.9]}
37... Rd5 {[%clk 0:00:21.3]} 38. Bc3 {[%clk 0:00:17.8]} 38... Rd8 {[%clk
0:00:19]} 39. b5 {[%clk 0:00:17.5]} 39... Kd5 {[%clk 0:00:18.7]} 40. Rc7 {[%clk
0:00:15]} 40... Ra8+ {[%clk 0:00:17.8]} 41. Ba5 {[%clk 0:00:15.2]} 41... Bc5
{[%clk 0:00:14.5]} 42. b4 {[%clk 0:00:12.8]} 42... Bd4 {[%clk 0:00:11.5]} 43.
Rd7+ {[%clk 0:00:09.7]} 43... Kc4 {[%clk 0:00:09.3]} 44. Rc7+ {[%clk 0:00:10.4]}
44... Kd5 {[%clk 0:00:09.3]} 45. Rd7+ {[%clk 0:00:09.4]} 45... Kc4 {[%clk
0:00:09.3]} 46. Rd6 {[%clk 0:00:10.1]} 46... g4 {[%clk 0:00:07.1]} 47. b6 {[%clk
0:00:09.4]} 47... e4 {[%clk 0:00:07.1]} 48. fxe4 {[%clk 0:00:09.2]} 48... f3
{[%clk 0:00:06.8]} 49. gxf3 {[%clk 0:00:08.6]} 49... gxf3 {[%clk 0:00:07.1]} 50.
b7 {[%clk 0:00:08.6]} 50... Rb8 {[%clk 0:00:07.3]} 51. Rd7 {[%clk 0:00:05.9]}
51... f2 {[%clk 0:00:07.4]} 52. Rc7+ {[%clk 0:00:04]} 52... Kd3 {[%clk
0:00:06.8]} 53. Rf7 {[%clk 0:00:04.4]} 53... Rxb7 {[%clk 0:00:07]} 54. Rxb7
{[%clk 0:00:02.6]} 54... f1=Q {[%clk 0:00:06]} 55. Rd7 {[%clk 0:00:03.5]} 55...
Qd1+ {[%clk 0:00:05.2]} 56. Kb5 {[%clk 0:00:03.5]} 56... Qb3 {[%clk 0:00:04.3]}
57. Bb6 {[%clk 0:00:02.8]} 57... Qc4+ {[%clk 0:00:04.3]} 58. Ka5 {[%clk
0:00:02.8]} 58... Qa2+ {[%clk 0:00:04.1]} 59. Kb5 {[%clk 0:00:03.1]} 59... Qc4+
{[%clk 0:00:04.3]} 60. Ka5 {[%clk 0:00:03.5]} 60... Qa2+ {[%clk 0:00:04.4]} 61.
Kb5 {[%clk 0:00:04]} 61... Qc4+ {[%clk 0:00:04.7]} 1/2-1/2

[Event "Late-Titled-Tuesday-Blitz-October-10-2023"]
[Site "Chess.com"]
[Date "2023.10.10"]
[Round "5"]
[White "2typicalchessplayer"]
[Black "Maestro1986"]
[Result "1-0"]
[WhiteElo "2381"]
[BlackElo "2532"]
[TimeControl "180+1"]
[EndTime "14:53:15 PDT"]
[Termination "2typicalchessplayer won by checkmate"]

1. Nf3 {[%clk 0:03:00.9]} 1... Nf6 {[%clk 0:02:58.5]} 2. g3 {[%clk 0:03:01.4]}
2... g6 {[%clk 0:02:58.8]} 3. b3 {[%clk 0:03:01.4]} 3... Bg7 {[%clk 0:02:58.7]}
4. Bb2 {[%clk 0:03:02]} 4... O-O {[%clk 0:02:59.1]} 5. Bg2 {[%clk 0:03:02.4]}
5... d5 {[%clk 0:02:59.8]} 6. c4 {[%clk 0:03:01.4]} 6... c6 {[%clk 0:02:59.5]}
7. O-O {[%clk 0:03:00.5]} 7... Bg4 {[%clk 0:02:59.1]} 8. d3 {[%clk 0:02:58]}
8... Qc8 {[%clk 0:02:56.7]} 9. Re1 {[%clk 0:02:55.8]} 9... Bh3 {[%clk
0:02:56.6]} 10. Bh1 {[%clk 0:02:56]} 10... Na6 {[%clk 0:02:53.8]} 11. Qc2 {[%clk
0:02:55.2]} 11... Nh5 {[%clk 0:02:45.4]} 12. Bxg7 {[%clk 0:02:53.1]} 12... Nxg7
{[%clk 0:02:46.3]} 13. Nc3 {[%clk 0:02:51.7]} 13... Nb4 {[%clk 0:02:34.3]} 14.
Qb2 {[%clk 0:02:50.6]} 14... Be6 {[%clk 0:02:28]} 15. a3 {[%clk 0:02:49.9]}
15... Na6 {[%clk 0:02:28.1]} 16. e4 {[%clk 0:02:47.1]} 16... h6 {[%clk 0:02:14]}
17. Rad1 {[%clk 0:02:38.5]} 17... dxc4 {[%clk 0:02:00]} 18. bxc4 {[%clk
0:02:29.2]} 18... Rd8 {[%clk 0:01:56.7]} 19. Na4 {[%clk 0:02:27.9]} 19... c5
{[%clk 0:01:51.5]} 20. Nc3 {[%clk 0:02:18]} 20... Nc7 {[%clk 0:01:46.7]} 21. Nd5
{[%clk 0:02:15.7]} 21... Nxd5 {[%clk 0:01:44.4]} 22. exd5 {[%clk 0:02:16.6]}
22... Bg4 {[%clk 0:01:39.6]} 23. Rb1 {[%clk 0:01:48]} 23... e6 {[%clk
0:01:30.7]} 24. Ne5 {[%clk 0:01:43.6]} 24... Bf5 {[%clk 0:01:16.2]} 25. dxe6
{[%clk 0:01:41.9]} 25... Nxe6 {[%clk 0:01:11.4]} 26. Bxb7 {[%clk 0:01:40.3]}
26... Qc7 {[%clk 0:01:06]} 27. Bxa8 {[%clk 0:01:31.9]} 27... Rxa8 {[%clk
0:01:06.9]} 28. Qb7 {[%clk 0:01:31.9]} 28... Qxb7 {[%clk 0:01:03.9]} 29. Rxb7
{[%clk 0:01:32.8]} 29... Nd4 {[%clk 0:00:43.3]} 30. Kg2 {[%clk 0:01:23.9]} 30...
Re8 {[%clk 0:00:41.2]} 31. Nf3 {[%clk 0:01:13.6]} 31... Rxe1 {[%clk 0:00:24.6]}
32. Nxe1 {[%clk 0:01:14.5]} 32... a6 {[%clk 0:00:24.3]} 33. Ra7 {[%clk
0:01:10.2]} 33... h5 {[%clk 0:00:16.8]} 34. Rxa6 {[%clk 0:01:09.8]} 34... h4
{[%clk 0:00:17.1]} 35. gxh4 {[%clk 0:01:08.9]} 35... Kf8 {[%clk 0:00:15.6]} 36.
Ra7 {[%clk 0:01:02.4]} 36... Ke8 {[%clk 0:00:13.4]} 37. a4 {[%clk 0:01:01.5]}
37... Bd7 {[%clk 0:00:13.4]} 38. a5 {[%clk 0:01:00.1]} 38... Kd8 {[%clk
0:00:13.9]} 39. Kg3 {[%clk 0:00:51.3]} 39... Kc8 {[%clk 0:00:13.9]} 40. Kf4
{[%clk 0:00:42.1]} 40... f6 {[%clk 0:00:12.4]} 41. Nf3 {[%clk 0:00:37.8]} 41...
Nc6 {[%clk 0:00:10.3]} 42. Ra6 {[%clk 0:00:35.1]} 42... Kc7 {[%clk 0:00:09.7]}
43. Ke3 {[%clk 0:00:29]} 43... Bc8 {[%clk 0:00:10]} 44. Rb6 {[%clk 0:00:27.1]}
44... f5 {[%clk 0:00:04.9]} 45. Rb5 {[%clk 0:00:26]} 45... Kd6 {[%clk
0:00:05.4]} 46. d4 {[%clk 0:00:24.8]} 46... cxd4+ {[%clk 0:00:04.2]} 47. Nxd4
{[%clk 0:00:25.7]} 47... f4+ {[%clk 0:00:04.6]} 48. Ke4 {[%clk 0:00:20.5]} 48...
Ne7 {[%clk 0:00:04.7]} 49. Rb6+ {[%clk 0:00:20.5]} 49... Kd7 {[%clk 0:00:04.7]}
50. c5 {[%clk 0:00:19.5]} 50... Kc7 {[%clk 0:00:05.1]} 51. Ke5 {[%clk
0:00:18.9]} 51... f3 {[%clk 0:00:04.6]} 52. Kf6 {[%clk 0:00:19.2]} 52... Nd5+
{[%clk 0:00:04.7]} 53. Kxg6 {[%clk 0:00:18.7]} 53... Nxb6 {[%clk 0:00:05.6]} 54.
cxb6+ {[%clk 0:00:19.6]} 54... Kd6 {[%clk 0:00:05.6]} 55. Nxf3 {[%clk
0:00:20.2]} 55... Ke6 {[%clk 0:00:05.9]} 56. Ng5+ {[%clk 0:00:21.1]} 56... Ke7
{[%clk 0:00:06.5]} 57. h5 {[%clk 0:00:21.1]} 57... Kf8 {[%clk 0:00:07.4]} 58. h6
{[%clk 0:00:22]} 58... Kg8 {[%clk 0:00:08.2]} 59. h7+ {[%clk 0:00:22.5]} 59...
Kh8 {[%clk 0:00:08.3]} 60. Nf7# {[%clk 0:00:23]} 1-0

[Event "Late-Titled-Tuesday-Blitz-October-10-2023"]
[Site "Chess.com"]
[Date "2023.10.10"]
[Round "5"]
[White "FontVella8"]
[Black "Noki102"]
[Result "1-0"]
[WhiteElo "2631"]
[BlackElo "2464"]
[TimeControl "180+1"]
[EndTime "14:53:20 PDT"]
[Termination "FontVella8 won by checkmate"]

1. e4 {[%clk 0:02:54.2]} 1... e5 {[%clk 0:02:59.8]} 2. Nf3 {[%clk 0:02:54.2]}
2... Nc6 {[%clk 0:03:00.1]} 3. Bc4 {[%clk 0:02:54.6]} 3... Nf6 {[%clk
0:03:00.2]} 4. Ng5 {[%clk 0:02:54.9]} 4... d5 {[%clk 0:02:59.4]} 5. exd5 {[%clk
0:02:55.4]} 5... Na5 {[%clk 0:02:59.7]} 6. Bb5+ {[%clk 0:02:55.5]} 6... c6
{[%clk 0:03:00.1]} 7. dxc6 {[%clk 0:02:56.1]} 7... bxc6 {[%clk 0:03:01]} 8. Qf3
{[%clk 0:02:56.5]} 8... Be7 {[%clk 0:03:00.7]} 9. Bd3 {[%clk 0:02:54]} 9... O-O
{[%clk 0:02:54.2]} 10. O-O {[%clk 0:02:50.8]} 10... h6 {[%clk 0:02:48.8]} 11.
Ne4 {[%clk 0:02:49.4]} 11... Nd5 {[%clk 0:02:47.9]} 12. Ng3 {[%clk 0:02:44.4]}
12... Nf4 {[%clk 0:02:42.4]} 13. Bf5 {[%clk 0:02:39.7]} 13... Bb7 {[%clk
0:02:30.9]} 14. d3 {[%clk 0:02:34]} 14... g6 {[%clk 0:02:27.5]} 15. Bxf4 {[%clk
0:02:16.3]} 15... exf4 {[%clk 0:02:22.5]} 16. Qxf4 {[%clk 0:02:16.4]} 16... Bg5
{[%clk 0:02:21.1]} 17. Qb4 {[%clk 0:02:03.3]} 17... gxf5 {[%clk 0:02:18.7]} 18.
Nxf5 {[%clk 0:01:59.5]} 18... Qd5 {[%clk 0:02:12.1]} 19. Ne3 {[%clk 0:01:17.1]}
19... Qb5 {[%clk 0:02:11.1]} 20. a3 {[%clk 0:01:06.5]} 20... Bc8 {[%clk
0:02:01.8]} 21. Nc3 {[%clk 0:01:00.9]} 21... Qxb4 {[%clk 0:01:56.3]} 22. axb4
{[%clk 0:01:01.8]} 22... Nb7 {[%clk 0:01:56.8]} 23. Nc4 {[%clk 0:01:00.3]} 23...
Be6 {[%clk 0:01:55.2]} 24. Ra6 {[%clk 0:00:51.9]} 24... Bf6 {[%clk 0:01:23]} 25.
Ne4 {[%clk 0:00:49.3]} 25... Bd4 {[%clk 0:01:21.5]} 26. c3 {[%clk 0:00:46.9]}
26... Bg7 {[%clk 0:01:19.8]} 27. Rfa1 {[%clk 0:00:43.4]} 27... Bxc4 {[%clk
0:01:16.7]} 28. dxc4 {[%clk 0:00:43.7]} 28... Rfe8 {[%clk 0:01:16.4]} 29. f3
{[%clk 0:00:43.3]} 29... f5 {[%clk 0:01:15.9]} 30. Ng3 {[%clk 0:00:42.9]} 30...
Nd6 {[%clk 0:01:07.7]} 31. Rxc6 {[%clk 0:00:41.6]} 31... Bf8 {[%clk 0:01:07]}
32. c5 {[%clk 0:00:39.7]} 32... Nf7 {[%clk 0:01:01.5]} 33. Nxf5 {[%clk
0:00:38.8]} 33... Re2 {[%clk 0:01:01.2]} 34. Nd4 {[%clk 0:00:38.7]} 34... Rxb2
{[%clk 0:01:00]} 35. Rg6+ {[%clk 0:00:35.8]} 35... Kh7 {[%clk 0:00:58.5]} 36.
Rga6 {[%clk 0:00:36]} 36... Re8 {[%clk 0:00:53.7]} 37. Rxa7 {[%clk 0:00:34]}
37... Kg8 {[%clk 0:00:54.2]} 38. Ra8 {[%clk 0:00:32.8]} 38... Re3 {[%clk
0:00:51.1]} 39. Rc1 {[%clk 0:00:19.3]} 39... Rd3 {[%clk 0:00:47.5]} 40. Ne6
{[%clk 0:00:10.7]} 40... Rdd2 {[%clk 0:00:24.8]} 41. Rxf8+ {[%clk 0:00:10.3]}
41... Kh7 {[%clk 0:00:25.4]} 42. Rxf7+ {[%clk 0:00:11]} 42... Kg6 {[%clk
0:00:26]} 43. Rg7+ {[%clk 0:00:11.1]} 43... Kf6 {[%clk 0:00:26.5]} 44. Re1
{[%clk 0:00:10.8]} 44... h5 {[%clk 0:00:18.7]} 45. h4 {[%clk 0:00:10.3]} 45...
Rdc2 {[%clk 0:00:13.9]} 46. Rg5 {[%clk 0:00:07.8]} 46... Rxc3 {[%clk 0:00:13.7]}
47. Nf4 {[%clk 0:00:06.5]} 47... Rcc2 {[%clk 0:00:11.3]} 48. Nxh5+ {[%clk
0:00:06.5]} 48... Kf7 {[%clk 0:00:11.3]} 49. Rg7+ {[%clk 0:00:06.7]} 49... Kf8
{[%clk 0:00:11.3]} 50. Rg4 {[%clk 0:00:04.8]} 50... Kf7 {[%clk 0:00:10.6]} 51.
Kh2 {[%clk 0:00:04.2]} 51... Rb3 {[%clk 0:00:08]} 52. Kh3 {[%clk 0:00:03.7]}
52... Rcc3 {[%clk 0:00:06.6]} 53. Ree4 {[%clk 0:00:02.6]} 53... Rc2 {[%clk
0:00:06.4]} 54. Rgf4+ {[%clk 0:00:02.7]} 54... Kg6 {[%clk 0:00:07]} 55. Re6+
{[%clk 0:00:01.9]} 55... Kh7 {[%clk 0:00:06.1]} 56. Rf7+ {[%clk 0:00:02.2]}
56... Kg8 {[%clk 0:00:06.5]} 57. Rg7+ {[%clk 0:00:02.9]} 57... Kf8 {[%clk
0:00:07]} 58. Rf6+ {[%clk 0:00:03.6]} 58... Ke8 {[%clk 0:00:06.7]} 59. Rff7
{[%clk 0:00:04.1]} 59... Rb1 {[%clk 0:00:05.1]} 60. Nf6+ {[%clk 0:00:04.4]}
60... Kd8 {[%clk 0:00:05.2]} 61. Rg8# {[%clk 0:00:05.1]} 1-0